bitfinex/quotes_SOLUSD_20240716
["timestamp","ask_amount","ask_price","bid_price","bid_amount"]
[1721104843498,0.11579988,158.32,158.31,86.74376937]
[1721104843882,0.11579988,158.32,158.31,94.3326939]
[1721104846374,0.11579988,158.32,158.31,101.52742345]
[1721104846674,16.051,158.45,158.31,101.52742345]
[1721104846879,16.051,158.45,158.33,19.02]
[1721104847074,16.051,158.45,158.36,19.02]
[1721104847281,7.0935959,158.47,158.38,19.02]
[1721104847487,0.8089959,158.47,158.4,19.02]
[1721104847797,0.8089959,158.47,158.42,19.02]
[1721104847993,0.8089959,158.47,158.43,21.26167878]
[1721104848193,0.8089959,158.47,158.43,66.26167878]
[1721104849099,0.8089959,158.47,158.44,1.26112136]
[1721104851778,0.8089959,158.47,158.45,19.02]
[1721104852093,0.8089959,158.47,158.46,85.28096262]
[1721104852399,0.8089959,158.47,158.46,64.02]
[1721104852570,0.8089959,158.47,158.46,84.02]
[1721104854598,0.8089959,158.47,158.46,85.28151006]
[1721104856676,0.8089959,158.47,158.46,84.02]
[1721104862501,0.8089959,158.47,158.46,84.72690898]
[1721104862694,0.8089959,158.47,158.46,84.02]
[1721104872930,0.8089959,158.47,158.46,85.2691937]
[1721104874024,0.8089959,158.47,158.46,85.28149155]
[1721104875605,0.8089959,158.47,158.46,84.02]
[1721104876522,0.8089959,158.47,158.42,19.02]
[1721104878405,0.8089959,158.47,158.43,64.02]
[1721104879146,0.8089959,158.47,158.44,20.0]
[1721104879427,0.8089959,158.47,158.45,45.0]
[1721104879923,0.8089959,158.47,158.46,20.0]
[1721104880131,0.8089959,158.47,158.46,65.0]
[1721104880928,0.8089959,158.47,158.46,20.0]
[1721104881126,0.8089959,158.47,158.42,19.02]
[1721104881339,0.8089959,158.47,158.43,66.26180849]
[1721104882611,0.8089959,158.47,158.43,85.28180849]
[1721104883613,0.8089959,158.47,158.43,65.0]
[1721104884621,0.8089959,158.47,158.43,84.02]
[1721104884827,0.8089959,158.47,158.44,1.11623652]
[1721104885015,0.8089959,158.47,158.43,84.02]
[1721104893718,0.8089959,158.47,158.44,0.80624053]
[1721104895114,0.8089959,158.47,158.44,1.2616473]
[1721104898455,0.8089959,158.47,158.43,90.259]
[1721104899757,0.8089959,158.47,158.43,97.45372955]
[1721104900327,0.8089959,158.47,158.45,19.02]
[1721104900545,0.8089959,158.47,158.46,84.02]
[1721104902042,0.8089959,158.47,158.46,85.47983403]
[1721104902547,0.8089959,158.47,158.46,101.72013403]
[1721104904047,0.8089959,158.47,158.46,108.91486358]
[1721104906438,16.2167,158.61,158.48,19.02]
[1721104906667,16.2167,158.61,158.5,19.02]
[1721104906947,16.2167,158.61,158.52,19.02]
[1721104907148,16.2167,158.61,158.51,20.0]
[1721104907149,16.2167,158.61,158.54,19.02]
[1721104907357,16.2167,158.61,158.55,20.0]
[1721104907539,16.2167,158.61,158.56,45.0]
[1721104907749,16.2167,158.61,158.57,20.0]
[1721104908040,16.2167,158.61,158.58,45.0]
[1721104908626,16.2167,158.61,158.59,1.06609435]
[1721104909155,16.2167,158.61,158.59,21.06609435]
[1721104909552,16.2167,158.61,158.6,45.0]
[1721104917230,7.0450959,158.63,158.6,66.2599476]
[1721104917231,0.8089959,158.63,158.6,66.2599476]
[1721104917434,0.8089959,158.63,158.61,21.25986817]
[1721104919232,0.8089959,158.63,158.61,20.0]
[1721104919546,0.8089959,158.63,158.62,45.0]
[1721104919856,0.8089959,158.63,158.62,65.52108368]
[1721104920351,0.8089959,158.63,158.62,65.0]
[1721104920757,0.8089959,158.63,158.62,20.0]
[1721104920947,0.8089959,158.63,158.57,19.02]
[1721104921138,0.8089959,158.63,158.58,65.0]
[1721104921460,0.8089959,158.63,158.59,1.01244101]
[1721104926251,0.8089959,158.63,158.58,84.02]
[1721104928883,0.8089959,158.63,158.59,1.26047319]
[1721104932142,0.8089959,158.63,158.61,19.02]
[1721104932349,0.8089959,158.63,158.62,65.4783615]
[1721104932561,0.8089959,158.63,158.62,85.4783615]
[1721104933250,0.8089959,158.63,158.62,21.4583615]
[1721104933585,0.8089959,158.63,158.62,20.0]
[1721104934253,0.8089959,158.63,158.59,19.02]
[1721104934580,0.8089959,158.63,158.6,30.0]
[1721104934744,0.8089959,158.63,158.59,19.02]
[1721104935782,0.8089959,158.63,158.6,45.0]
[1721104935970,0.8089959,158.63,158.61,20.0]
[1721104936171,0.8089959,158.63,158.62,45.0]
[1721104936386,0.8089959,158.63,158.62,65.0]
[1721104950170,0.8089959,158.63,158.62,84.02]
[1721104952397,0.8089959,158.63,158.62,20.0]
[1721104952694,0.8089959,158.63,158.54,15.626]
[1721104952878,0.8089959,158.63,158.55,30.0]
[1721104953475,0.8089959,158.63,158.56,19.02]
[1721104953776,0.8089959,158.63,158.55,19.02]
[1721104954477,0.8089959,158.63,158.56,39.02]
[1721104955191,0.8089959,158.63,158.57,45.0]
[1721104955394,0.8089959,158.63,158.58,20.0]
[1721104956005,0.8089959,158.63,158.55,19.02]
[1721104956006,7.1586959,158.63,158.55,19.02]
[1721104956688,7.1586959,158.63,158.54,1.45909739]
[1721104956891,7.1586959,158.63,158.53,19.02]
[1721104957191,0.8089959,158.63,158.55,19.02]
[1721104957386,0.8089959,158.63,158.57,19.02]
[1721104957606,0.8089959,158.63,158.58,45.0]
[1721104957906,0.8089959,158.63,158.58,64.02]
[1721104958080,0.8089959,158.63,158.59,20.0]
[1721104958270,0.8089959,158.63,158.6,45.0]
[1721104958477,0.8089959,158.63,158.61,20.0]
[1721104962000,0.8089959,158.63,158.62,1.26069305]
[1721104962494,0.8089959,158.63,158.62,46.26069305]
[1721104962809,0.8089959,158.63,158.62,66.26069305]
[1721104963192,0.8089959,158.63,158.62,85.21069305]
[1721104964502,0.8089959,158.63,158.62,83.95]
[1721104965483,0.8089959,158.63,158.62,99.3714]
[1721104971303,0.8089959,158.63,158.59,18.95]
[1721104972807,0.8089959,158.63,158.61,18.95]
[1721104972985,0.8089959,158.63,158.62,63.95]
[1721104973386,0.8089959,158.63,158.62,83.95]
[1721104974781,0.8089959,158.63,158.62,85.21033306]
[1721104976294,0.8089959,158.63,158.62,83.95]
[1721104981295,0.8089959,158.63,158.62,38.95]
[1721104983200,0.8089959,158.63,158.62,20.0]
[1721104983507,0.8089959,158.63,158.59,18.95]
[1721104984793,15.2361,158.62,158.6,1.25847237]
[1721104985199,15.2361,158.62,158.58,1.25940217]
[1721104986518,15.2361,158.62,158.55,6.58919507]
[1721104987507,15.2361,158.62,158.55,25.53919507]
[1721104987925,15.2361,158.62,158.56,20.0]
[1721104988517,15.2361,158.62,158.57,45.0]
[1721104988820,0.8089959,158.63,158.57,45.0]
[1721104989020,0.8089959,158.63,158.58,20.0]
[1721104989223,0.8089959,158.63,158.59,45.0]
[1721104989523,0.8089959,158.63,158.6,20.0]
[1721104992199,22.4367,158.62,158.5,16.0313]
[1721104992408,1.57640294,158.61,158.47,9.88781441]
[1721104992625,1.5764575,158.6,158.51,6.59224964]
[1721104992829,1.5764575,158.6,158.49,30.0]
[1721104993209,1.5764575,158.6,158.5,25.54017037]
[1721104993715,1.57647526,158.61,158.5,25.54017037]
[1721104993905,1.57648499,158.6,158.5,25.54017037]
[1721104994108,1.57648641,158.61,158.51,45.0]
[1721104994308,1.57649949,158.6,158.51,63.95]
[1721104994506,1.57638447,158.61,158.51,63.95]
[1721104995030,1.57638447,158.61,158.52,20.0]
[1721104995217,1.5763966,158.6,158.53,45.0]
[1721104995415,1.57644853,158.61,158.54,20.0]
[1721104995730,1.57639859,158.6,158.54,20.0]
[1721104996029,1.57639859,158.6,158.52,20.0]
[1721104996328,1.57650405,158.61,158.53,45.0]
[1721104996507,1.57650405,158.61,158.54,20.0]
[1721104996707,1.57650405,158.61,158.55,45.0]
[1721104996911,1.57650405,158.61,158.56,20.0]
[1721104997620,22.4367,158.62,158.57,45.0]
[1721104997823,22.4367,158.62,158.58,20.0]
[1721104998224,1.57622122,158.61,158.58,20.0]
[1721104998420,22.4367,158.62,158.52,38.95]
[1721104998624,22.4367,158.62,158.54,18.95]
[1721104998936,22.4367,158.62,158.55,83.95]
[1721104999115,22.4367,158.62,158.55,38.95]
[1721104999315,22.4367,158.62,158.56,45.0]
[1721104999626,22.4367,158.62,158.57,20.0]
[1721104999826,22.4367,158.62,158.58,45.0]
[1721105000026,22.4367,158.62,158.59,20.3420046]
[1721105003147,22.4367,158.62,158.59,20.0]
[1721105003317,1.57622068,158.61,158.59,20.0]
[1721105003521,1.57622068,158.61,158.5,18.95]
[1721105003729,1.57622068,158.61,158.52,18.95]
[1721105004528,22.4367,158.62,158.5,25.53771196]
[1721105004529,1.57633409,158.6,158.5,25.53771196]
[1721105004839,1.57646441,158.61,158.5,25.53771196]
[1721105005020,1.57644916,158.6,158.5,25.53771196]
[1721105005221,1.57644758,158.61,158.5,25.53771196]
[1721105005422,1.5764461,158.6,158.5,25.53771196]
[1721105005621,1.57643509,158.61,158.51,45.0]
[1721105005823,1.57643648,158.6,158.52,20.0]
[1721105006033,1.57643648,158.6,158.53,45.0]
[1721105006322,1.57643648,158.6,158.54,20.0]
[1721105006922,1.57654948,158.61,158.54,20.0]
[1721105007133,1.57654958,158.6,158.54,20.0]
[1721105007515,1.57652425,158.61,158.54,20.0]
[1721105007827,1.5765176,158.6,158.54,20.0]
[1721105008032,1.57645474,158.61,158.55,45.0]
[1721105008220,1.57647639,158.61,158.56,20.0]
[1721105009346,24.01301869,158.62,158.56,20.0]
[1721105009646,24.01301869,158.62,158.57,45.0]
[1721105010231,15.9304,158.62,158.57,45.0]
[1721105010414,15.9304,158.62,158.58,20.0]
[1721105010618,15.9304,158.62,158.59,45.0]
[1721105010830,15.9304,158.62,158.6,20.0]
[1721105015845,15.9304,158.62,158.6,20.69082255]
[1721105016232,15.9304,158.62,158.6,21.26035402]
[1721105017133,15.9304,158.62,158.6,20.0]
[1721105017932,0.8089959,158.63,158.6,20.0]
[1721105018141,0.8089959,158.63,158.61,45.0]
[1721105020549,2.38488689,158.63,158.6,20.0]
[1721105020746,2.38488689,158.63,158.54,20.0]
[1721105021052,2.38488689,158.63,158.55,45.0]
[1721105021261,2.38488689,158.63,158.54,20.0]
[1721105021431,2.38488689,158.63,158.53,20.0]
[1721105021630,15.6841,158.62,158.51,6.58981527]
[1721105021834,1.57646151,158.61,158.51,6.58981527]
[1721105022035,15.6841,158.62,158.51,6.58981527]
[1721105022036,1.57647097,158.6,158.51,6.58981527]
[1721105023151,1.57652684,158.61,158.52,20.0]
[1721105023357,1.57654798,158.6,158.52,20.0]
[1721105023841,1.57654798,158.6,158.53,45.0]
[1721105024153,1.57654798,158.6,158.54,20.0]
[1721105024350,1.57654866,158.61,158.54,20.0]
[1721105024660,1.57654897,158.6,158.54,20.0]
[1721105025229,1.57654871,158.61,158.54,20.0]
[1721105025566,1.57654871,158.61,158.55,45.0]
[1721105025775,1.57654871,158.61,158.56,20.0]
[1721105026239,1.57639312,158.6,158.56,20.0]
[1721105026442,1.57646507,158.61,158.56,20.0]
[1721105029556,1.57639545,158.6,158.56,20.0]
[1721105029750,1.57639545,158.6,158.52,20.0]
[1721105029938,1.57639545,158.6,158.53,45.0]
[1721105030145,1.57655354,158.61,158.54,20.0]
[1721105030446,1.57655354,158.61,158.55,45.0]
[1721105030655,1.57655354,158.61,158.56,20.0]
[1721105031142,1.57642479,158.6,158.56,20.0]
[1721105031458,1.57643732,158.61,158.56,20.0]
[1721105037661,15.6841,158.62,158.57,46.25915687]
[1721105040270,15.6841,158.62,158.58,20.0]
[1721105040441,0.8089959,158.63,158.59,45.0]
[1721105040642,0.8089959,158.63,158.6,20.0]
[1721105041257,0.8089959,158.63,158.61,1.26081984]
[1721105043162,0.8089959,158.63,158.61,45.0]
[1721105043375,0.8089959,158.63,158.62,20.0]
[1721105043565,0.8089959,158.63,158.62,65.0]
[1721105045058,0.8089959,158.63,158.62,20.0]
[1721105045249,0.8089959,158.63,158.58,20.0]
[1721105045466,0.8089959,158.63,158.59,45.0]
[1721105045771,0.8089959,158.63,158.6,20.0]
[1721105046280,2.38494145,158.63,158.51,6.3568]
[1721105046657,2.38494145,158.63,158.51,12.94509265]
[1721105047260,2.38494145,158.63,158.51,31.89509265]
[1721105048776,2.38494145,158.63,158.53,45.0]
[1721105048968,2.38494145,158.63,158.54,20.0]
[1721105049170,2.38494145,158.63,158.55,45.0]
[1721105049368,2.38494145,158.63,158.56,20.0]
[1721105050479,16.6263,158.62,158.56,20.0]
[1721105050669,1.57649232,158.61,158.56,20.0]
[1721105050854,16.6263,158.62,158.56,20.0]
[1721105050855,1.57648414,158.6,158.56,20.0]
[1721105051379,1.57646236,158.61,158.56,20.0]
[1721105057286,18.20269634,158.62,158.56,20.0]
[1721105057477,18.20269634,158.62,158.57,45.0]
[1721105058395,18.20269634,158.62,158.56,20.0]
[1721105058591,18.20269634,158.62,158.52,38.95]
[1721105058782,18.20269634,158.62,158.53,45.0]
[1721105059085,18.20269634,158.62,158.54,20.0]
[1721105059290,24.50729634,158.62,158.54,20.0]
[1721105059464,24.50729634,158.62,158.51,20.0]
[1721105059862,18.20269634,158.62,158.52,0.69581325]
[1721105060064,18.20269634,158.62,158.51,38.95]
[1721105060259,24.50719634,158.62,158.51,20.0]
[1721105061083,24.50719634,158.62,158.5,401.8668]
[1721105061084,6.3054,158.6,158.5,386.0]
[1721105061390,6.3054,158.6,158.47,12.78142404]
[1721105061391,17.50551907,158.59,158.47,12.78142404]
[1721105062587,17.50551907,158.59,158.47,6.49412404]
[1721105062789,6.3062,158.58,158.45,7.19452176]
[1721105062997,1.57708405,158.57,158.45,26.14452176]
[1721105063179,1.57708405,158.57,158.45,32.6386458]
[1721105063686,7.88348405,158.57,158.45,32.6386458]
[1721105063882,7.88348405,158.57,158.46,45.0]
[1721105063883,1.57708405,158.57,158.46,45.0]
[1721105064887,1.57708405,158.57,158.47,20.0]
[1721105065081,1.57708405,158.57,158.48,45.0]
[1721105065281,1.57708405,158.57,158.49,20.0]
[1721105067471,22.6491,158.56,158.49,20.0]
[1721105067671,1.57719549,158.55,158.49,20.0]
[1721105067894,1.57719802,158.54,158.48,45.0]
[1721105068095,1.57719802,158.54,158.44,25.54410577]
[1721105068301,1.57719802,158.54,158.45,45.0]
[1721105069088,15.5846,158.53,158.44,6.59410577]
[1721105069282,1.57759405,158.52,158.45,20.0]
[1721105069468,1.57759356,158.51,158.44,20.0]
[1721105070283,1.57759356,158.51,158.43,26.323]
[1721105070676,1.57759356,158.51,158.44,45.0]
[1721105070892,1.57758284,158.52,158.45,20.0]
[1721105071076,1.57738123,158.51,158.45,20.0]
[1721105071692,1.57749156,158.52,158.44,20.0]
[1721105071875,1.57732444,158.51,158.44,20.0]
[1721105072193,1.5773447,158.52,158.44,20.0]
[1721105072402,1.57732777,158.51,158.45,45.0]
[1721105072701,1.57745339,158.52,158.46,20.0]
[1721105072888,1.57736786,158.51,158.46,20.0]
[1721105073093,1.57736796,158.52,158.46,20.0]
[1721105073295,15.5846,158.53,158.46,20.0]
[1721105073296,1.57744476,158.51,158.46,20.0]
[1721105073475,1.57744478,158.52,158.46,20.0]
[1721105073673,15.5846,158.53,158.46,20.0]
[1721105073674,1.57736675,158.51,158.46,20.0]
[1721105073883,1.57741631,158.52,158.46,20.0]
[1721105074085,1.57753368,158.51,158.46,20.0]
[1721105074288,1.57753368,158.51,158.43,26.323]
[1721105074597,1.57753368,158.51,158.44,0.71491979]
[1721105074779,1.5775328,158.52,158.44,0.71491979]
[1721105074980,1.57737315,158.51,158.44,0.71491979]
[1721105075323,1.57736477,158.52,158.44,1.26189182]
[1721105075484,1.57737353,158.51,158.44,46.26189182]
[1721105075677,1.57737369,158.52,158.45,20.0]
[1721105075877,15.5846,158.53,158.46,46.26189913]
[1721105075878,1.57737391,158.51,158.46,46.26189913]
[1721105076077,1.57737391,158.52,158.47,20.0]
[1721105076291,1.57737654,158.52,158.47,21.26190123]
[1721105076599,1.57726888,158.51,158.47,20.0]
[1721105076899,1.57733139,158.52,158.47,20.0]
[1721105077083,1.57731456,158.51,158.47,20.0]
[1721105077287,1.5773782,158.52,158.47,20.0]
[1721105077490,1.5773636,158.52,158.47,21.11573778]
[1721105077673,1.57727848,158.51,158.47,20.0]
[1721105077871,1.57744348,158.52,158.47,20.0]
[1721105078073,1.57733568,158.51,158.43,26.323]
[1721105078288,1.57737646,158.52,158.44,46.11594901]
[1721105078491,1.57735608,158.51,158.45,20.0]
[1721105078699,1.57737185,158.52,158.46,46.11580816]
[1721105078906,1.57735373,158.51,158.46,46.11580816]
[1721105079075,1.57737171,158.5,158.47,20.0]
[1721105079282,1.57748691,158.52,158.46,1.26198952]
[1721105079483,1.57737055,158.51,158.46,46.26198952]
[1721105079692,1.57737639,158.52,158.47,20.0]
[1721105079890,1.57737489,158.51,158.47,20.0]
[1721105080202,1.57737419,158.52,158.47,20.0]
[1721105080595,1.57737616,158.51,158.47,21.26190093]
[1721105080800,1.57737602,158.52,158.47,21.26190093]
[1721105080978,1.5773479,158.51,158.47,21.26190093]
[1721105081309,1.57734639,158.52,158.47,20.0]
[1721105081477,1.57734639,158.52,158.48,45.0]
[1721105081679,1.57724259,158.51,158.49,20.0]
[1721105081900,1.57724259,158.51,158.47,20.0]
[1721105082402,1.57752879,158.52,158.44,20.0]
[1721105082606,1.57733095,158.51,158.44,20.0]
[1721105082786,1.57734273,158.52,158.44,20.0]
[1721105082982,1.57734285,158.51,158.44,20.0]
[1721105083298,1.57737719,158.52,158.45,45.0]
[1721105083490,1.57737659,158.51,158.46,20.0]
[1721105083690,1.57738252,158.52,158.46,20.0]
[1721105083894,1.57737963,158.51,158.46,20.0]
[1721105084080,1.57737963,158.52,158.46,20.0]
[1721105084277,1.57738006,158.51,158.46,20.0]
[1721105084908,33.048307,158.64,158.47,41.87840439]
[1721105084909,0.8089959,158.63,158.47,41.87840439]
[1721105085209,0.8089959,158.63,158.51,18.95]
[1721105085510,0.8089959,158.63,158.53,18.95]
[1721105085683,0.8089959,158.63,158.55,18.95]
[1721105085883,0.8089959,158.63,158.56,70.93955362]
[1721105086083,0.8089959,158.63,158.57,45.0]
[1721105086410,0.8089959,158.63,158.58,34.21360284]
[1721105086705,0.8089959,158.63,158.58,20.0]
[1721105087017,0.8089959,158.63,158.59,45.0]
[1721105087194,0.8089959,158.63,158.6,20.0]
[1721105088095,0.8089959,158.63,158.6,50.0]
[1721105089404,0.8089959,158.63,158.6,51.25854487]
[1721105090483,0.8089959,158.63,158.61,46.25846551]
[1721105090690,0.8089959,158.63,158.62,20.0]
[1721105090895,0.8089959,158.63,158.62,65.0]
[1721105091098,0.8089959,158.63,158.62,66.26069308]
[1721105091810,0.8089959,158.63,158.62,96.26069308]
[1721105094209,0.8089959,158.63,158.62,95.0]
[1721105096609,0.8089959,158.63,158.62,50.0]
[1721105097908,0.8089959,158.63,158.62,95.0]
[1721105100819,0.8089959,158.63,158.62,20.0]
[1721105101722,2.384992,158.63,158.56,7.14153734]
[1721105101901,2.384992,158.63,158.58,30.0]
[1721105102299,2.384992,158.63,158.55,7.14153734]
[1721105103217,2.384992,158.63,158.56,45.0]
[1721105104417,2.384992,158.63,158.57,21.26097558]
[1721105104615,2.384992,158.63,158.58,45.0]
[1721105104822,2.384992,158.63,158.59,20.0]
[1721105108807,0.8089959,158.63,158.59,20.0]
[1721105109008,0.8089959,158.63,158.6,45.0]
[1721105109310,0.8089959,158.63,158.61,20.0]
[1721105111305,0.8089959,158.63,158.62,45.0]
[1721105111603,0.8089959,158.63,158.62,65.0]
[1721105116409,0.8089959,158.63,158.62,45.0]
[1721105116609,0.8089959,158.63,158.61,45.0]
[1721105118115,0.8089959,158.63,158.62,20.0]
[1721105125725,2.3848892,158.63,158.54,42.908921]
[1721105125911,2.3848892,158.63,158.55,52.14153734]
[1721105126232,17.8439892,158.63,158.55,7.14153734]
[1721105128324,17.8439892,158.63,158.56,65.0]
[1721105134335,17.8439892,158.63,158.56,65.97533854]
[1721105134738,17.8439892,158.63,158.56,65.0]
[1721105135816,17.8439892,158.63,158.57,1.26094837]
[1721105136020,17.8439892,158.63,158.56,65.0]
[1721105138962,17.8439892,158.63,158.57,1.26107159]
[1721105139855,17.8439892,158.63,158.56,65.0]
[1721105140772,17.8439892,158.63,158.57,1.26095131]
[1721105141062,17.8439892,158.63,158.56,65.0]
[1721105141241,17.8439892,158.63,158.57,1.26093714]
[1721105141425,16.2680959,158.63,158.56,65.0]
[1721105141631,0.8089959,158.63,158.56,72.14153734]
[1721105141834,0.8089959,158.63,158.56,91.09153734]
[1721105142230,0.8089959,158.63,158.57,7.14153734]
[1721105142430,0.8089959,158.63,158.58,65.0]
[1721105144247,0.8089959,158.63,158.59,7.14153734]
[1721105144562,0.8089959,158.63,158.6,65.0]
[1721105159772,0.8089959,158.63,158.61,33.56315834]
[1721105159966,0.8089959,158.63,158.62,65.0]
[1721105161151,0.8089959,158.63,158.62,21.2605917]
[1721105161373,0.8089959,158.63,158.61,14.61315834]
[1721105161374,0.8089959,158.63,158.57,25.4802]
[1721105161575,0.8089959,158.63,158.57,32.62173734]
[1721105162172,0.8089959,158.63,158.57,40.09335834]
[1721105162673,0.8089959,158.63,158.58,45.0]
[1721105163073,0.8089959,158.63,158.59,20.0]
[1721105163378,0.8089959,158.63,158.6,45.0]
[1721105163581,0.8089959,158.63,158.61,20.0]
[1721105163773,0.8089959,158.63,158.62,45.0]
[1721105164076,2.38489858,158.63,158.54,24.9576953]
[1721105164462,2.38489858,158.63,158.54,6.0076953]
[1721105164779,2.38489858,158.63,158.53,14.114321]
[1721105165284,2.38489858,158.63,158.53,33.064321]
[1721105165482,2.38489858,158.63,158.56,20.0]
[1721105166482,2.38489858,158.63,158.57,45.0]
[1721105166694,2.38489858,158.63,158.58,20.0]
[1721105171183,2.38507142,158.63,158.58,20.0]
[1721105171387,2.38507142,158.63,158.56,20.0]
[1721105171686,0.8089959,158.63,158.57,45.0]
[1721105171874,0.8089959,158.63,158.58,20.0]
[1721105172065,0.8089959,158.63,158.59,45.0]
[1721105172066,2.38513213,158.63,158.59,45.0]
[1721105172265,0.8089959,158.63,158.6,20.0]
[1721105172467,0.8089959,158.63,158.61,45.0]
[1721105172696,0.8089959,158.63,158.62,20.0]
[1721105172889,0.8089959,158.63,158.62,65.0]
[1721105177990,0.8089959,158.63,158.62,83.95]
[1721105179684,0.8089959,158.63,158.62,91.421621]
[1721105179875,0.8089959,158.63,158.62,108.030821]
[1721105180194,0.8089959,158.63,158.62,114.45808056]
[1721105181270,33.048307,158.64,158.62,122.03003914]
[1721105181489,33.048307,158.64,158.63,91.58773914]
[1721105181697,33.048307,158.64,158.63,104.01578056]
[1721105181897,33.048307,158.64,158.63,111.58745571]
[1721105182274,33.048307,158.64,158.63,134.01578056]
[1721105182602,33.048307,158.64,158.63,141.58727595]
[1721105183181,33.048307,158.64,158.63,134.01578056]
[1721105183580,16.7631959,158.79,158.63,151.58722119]
[1721105183780,1.57477131,158.78,158.65,18.95]
[1721105183999,1.57477131,158.78,158.67,18.95]
[1721105184204,1.57477131,158.78,158.68,83.95]
[1721105184375,1.57477131,158.78,158.68,18.95]
[1721105184578,1.57477131,158.78,158.69,65.0]
[1721105184996,1.57476791,158.78,158.69,83.95]
[1721105185211,16.7631959,158.79,158.69,83.95]
[1721105185493,16.7631959,158.79,158.71,18.95]
[1721105185494,0.8089959,158.79,158.71,18.95]
[1721105185808,0.8089959,158.79,158.72,83.95]
[1721105186577,0.8089959,158.79,158.74,18.95]
[1721105186782,0.8089959,158.79,158.75,83.95]
[1721105188105,0.8089959,158.79,158.76,1.11365478]
[1721105189290,0.8089959,158.79,158.75,83.95]
[1721105189687,0.8089959,158.79,158.75,65.0]
[1721105190701,0.8089959,158.79,158.78,4.6760516]
[1721105191501,2.38350538,158.79,158.78,4.6760516]
[1721105192090,2.38350538,158.79,158.66,6.5818]
[1721105192386,2.38350538,158.79,158.65,23.833021]
[1721105192387,21.9551,158.78,158.65,7.471621]
[1721105192596,1.57499869,158.77,158.65,7.471621]
[1721105192899,1.57485921,158.76,158.66,18.95]
[1721105193587,1.57485921,158.76,158.67,38.95]
[1721105193783,1.57486035,158.77,158.67,38.95]
[1721105194293,1.57486052,158.76,158.67,38.95]
[1721105194485,1.57486221,158.77,158.68,45.0]
[1721105194689,1.5748616,158.76,158.69,20.0]
[1721105194884,1.57486069,158.77,158.7,45.0]
[1721105195198,1.57486068,158.76,158.71,20.0]
[1721105195506,1.57485074,158.77,158.71,20.0]
[1721105195709,1.57485071,158.76,158.71,20.0]
[1721105195903,1.57485071,158.77,158.71,20.0]
[1721105196090,21.9551,158.78,158.71,20.0]
[1721105196091,1.57485067,158.76,158.71,20.0]
[1721105196294,1.57485123,158.77,158.71,20.0]
[1721105196508,1.57485199,158.76,158.71,20.0]
[1721105196705,1.57485076,158.77,158.71,20.0]
[1721105197007,21.9551,158.78,158.71,20.0]
[1721105197205,21.9551,158.78,158.72,45.0]
[1721105197407,21.9551,158.78,158.73,20.0]
[1721105198813,15.5544,158.78,158.73,20.0]
[1721105199287,15.5544,158.78,158.74,45.0]
[1721105199616,15.5544,158.78,158.75,20.0]
[1721105200610,0.8089959,158.79,158.76,45.0]
[1721105200786,0.8089959,158.79,158.77,20.0]
[1721105201612,2.38349961,158.79,158.66,6.0979]
[1721105201914,22.8185,158.78,158.63,6.07337067]
[1721105202204,22.8185,158.74,158.62,13.783621]
[1721105202520,46.57561943,158.73,158.62,7.471621]
[1721105202689,46.57561943,158.73,158.58,386.0]
[1721105203002,6.3004,158.72,158.58,6.59172905]
[1721105203209,1.5758872,158.71,158.58,6.59172905]
[1721105203390,1.57592152,158.7,158.58,6.59172905]
[1721105203990,16.6401,158.69,158.57,7.471621]
[1721105204191,6.1784,158.67,158.57,7.471621]
[1721105204389,1.57613403,158.66,158.57,7.471621]
[1721105205508,1.57613403,158.66,158.58,20.0]
[1721105207607,1.57613403,158.66,158.59,45.0]
[1721105207806,1.57613403,158.66,158.6,20.0]
[1721105208400,1.57613403,158.66,158.58,20.0]
[1721105208597,1.57613403,158.66,158.59,45.0]
[1721105208812,1.57613403,158.66,158.6,20.0]
[1721105212009,1.57613403,158.66,158.61,45.0]
[1721105212312,7.75424126,158.67,158.62,20.0]